[Event "Norwegian Championship 2022"]
[Site "Kongsvinger, Norway"]
[Date "2022.07.13"]
[Round "6"]
[White "Hammer, Jon Ludvig"]
[Black "Elsness, Frode"]
[Result "1/2-1/2"]
[Board "3"]
[TimeControl "40/5400+30:1800+30"]
[WhiteTitle "GM"]
[BlackTitle "IM"]
[WhiteFideId "1503707"]
[BlackFideId "1501100"]
[WhiteElo "2638"]
[BlackElo "2464"]

1. e4 {[%clk 01:30:59]} {[%emt 00:00:01]} e5 {[%clk 01:29:55]} {[%emt
00:01:05]} 2. Nf3 {[%clk 01:31:20]} {[%emt 00:00:08]} Nc6 {[%clk 01:30:20]}
{[%emt 00:00:06]} 3. Bb5 {[%clk 01:31:43]} {[%emt 00:00:07]} a6 {[%clk
01:30:41]} {[%emt 00:00:10]} 4. Ba4 {[%clk 01:32:06]} {[%emt 00:00:05]} Nf6
{[%clk 01:31:07]} {[%emt 00:00:05]} 5. O-O {[%clk 01:32:25]} {[%emt 00:00:10]}
Nxe4 {[%clk 01:31:28]} {[%emt 00:00:10]} 6. d4 {[%clk 01:31:57]} {[%emt
00:00:57]} b5 {[%clk 01:31:50]} {[%emt 00:00:09]} 7. Bb3 {[%clk 01:30:00]}
{[%emt 00:02:26]} d5 {[%clk 01:30:52]} {[%emt 00:01:28]} 8. dxe5 {[%clk
01:19:44]} {[%emt 00:10:47]} Be6 {[%clk 01:31:17]} {[%emt 00:00:04]} 9. Nbd2
{[%clk 01:19:43]} {[%emt 00:00:31]} Be7 {[%clk 01:29:31]} {[%emt 00:02:15]} 10.
c3 {[%clk 01:19:55]} {[%emt 00:00:19]} O-O {[%clk 01:27:04]} {[%emt 00:02:57]}
11. Bc2 {[%clk 01:20:18]} {[%emt 00:00:07]} f5 {[%clk 01:27:09]} {[%emt
00:00:25]} 12. exf6 {[%clk 01:04:41]} {[%emt 00:16:08]} Nxf6 {[%clk 01:27:06]}
{[%emt 00:00:32]} 13. Re1 {[%clk 01:04:56]} {[%emt 00:00:15]} Bg4 {[%clk
01:23:48]} {[%emt 00:03:47]} 14. Nf1 {[%clk 01:03:08]} {[%emt 00:02:19]} Bc5
{[%clk 00:58:22]} {[%emt 00:25:57]} 15. Be3 {[%clk 00:56:14]} {[%emt 00:07:24]}
d4 {[%clk 00:53:12]} {[%emt 00:05:39]} 16. cxd4 {[%clk 00:45:48]} {[%emt
00:10:57]} Nxd4 {[%clk 00:52:07]} {[%emt 00:01:35]} 17. Rc1 {[%clk 00:30:31]}
{[%emt 00:15:47]} Bxf3 {[%clk 00:45:54]} {[%emt 00:06:43]} 18. gxf3 {[%clk
00:30:48]} {[%emt 00:00:12]} Bb6 {[%clk 00:42:14]} {[%emt 00:04:10]} 19. Ng3
{[%clk 00:29:58]} {[%emt 00:01:21]} Kh8 {[%clk 00:35:29]} {[%emt 00:07:14]} 20.
Bb1 {[%clk 00:30:09]} {[%emt 00:00:20]} c5 {[%clk 00:32:10]} {[%emt 00:03:49]}
21. Bxd4 {[%clk 00:27:42]} {[%emt 00:02:57]} cxd4 {[%clk 00:32:10]} {[%emt
00:00:29]} 22. Qd3 {[%clk 00:27:44]} {[%emt 00:00:28]} Qd5 {[%clk 00:28:40]}
{[%emt 00:03:59]} 23. h4 {[%clk 00:22:04]} {[%emt 00:06:11]} Rae8 {[%clk
00:20:26]} {[%emt 00:08:43]} 24. Rxe8 {[%clk 00:20:28]} {[%emt 00:02:06]} Rxe8
{[%clk 00:20:32]} {[%emt 00:00:26]} 25. h5 {[%clk 00:17:13]} {[%emt 00:03:45]}
Qd7 {[%clk 00:18:07]} {[%emt 00:02:54]} 26. Qf5 {[%clk 00:17:11]} {[%emt
00:00:33]} Kg8 {[%clk 00:13:46]} {[%emt 00:04:51]} 27. Kf1 {[%clk 00:13:11]}
{[%emt 00:04:30]} Rd8 {[%clk 00:12:22]} {[%emt 00:01:52]} 28. Qxd7 {[%clk
00:12:26]} {[%emt 00:01:17]} Rxd7 {[%clk 00:11:05]} {[%emt 00:01:47]} 29. Rc6
{[%clk 00:05:58]} {[%emt 00:06:58]} Rc7 {[%clk 00:11:16]} {[%emt 00:00:18]} 30.
Rxb6 {[%clk 00:04:56]} {[%emt 00:01:32]} Rc1+ {[%clk 00:11:44]} {[%emt
00:00:02]} 31. Kg2 {[%clk 00:01:54]} {[%emt 00:03:31]} Rxb1 {[%clk 00:12:10]}
{[%emt 00:00:04]} 32. Rxa6 {[%clk 00:02:09]} {[%emt 00:00:15]} Rxb2 {[%clk
00:06:46]} {[%emt 00:05:54]} 33. h6 {[%clk 00:02:24]} {[%emt 00:00:15]} d3
{[%clk 00:05:20]} {[%emt 00:01:56]} 34. Ra8+ {[%clk 00:02:14]} {[%emt
00:00:39]} Kf7 {[%clk 00:05:49]} {[%emt 00:00:01]} 35. Ra7+ {[%clk 00:02:35]}
{[%emt 00:00:10]} Kg6 {[%clk 00:02:33]} {[%emt 00:03:46]} 36. Rxg7+ {[%clk
00:02:58]} {[%emt 00:00:07]} Kxh6 {[%clk 00:03:02]} {[%emt 00:00:02]} 37. Nf5+
{[%clk 00:03:18]} {[%emt 00:00:09]} Kh5 {[%clk 00:03:26]} {[%emt 00:00:06]} 38.
f4 {[%clk 00:03:16]} {[%emt 00:00:32]} Ne4 {[%clk 00:01:11]} {[%emt 00:02:45]}
39. Kf3 {[%clk 00:03:31]} {[%emt 00:00:15]} Re2 {[%clk 00:01:18]} {[%emt
00:00:23]} 40. Nd4 {[%clk 00:32:20]} {[%emt 00:01:41]} Re1 {[%clk 00:30:48]}
{[%emt 00:01:01]} 41. Nb3 {[%clk 00:27:27]} {[%emt 00:05:23]} d2 {[%clk
00:26:33]} {[%emt 00:04:44]} 42. Rxh7+ {[%clk 00:27:52]} {[%emt 00:00:05]} Kg6
{[%clk 00:27:03]} {[%emt 00:00:01]} 43. Rd7 {[%clk 00:28:13]} {[%emt 00:00:09]}
d1=Q+ {[%clk 00:25:49]} {[%emt 00:01:44]} 44. Rxd1 {[%clk 00:28:40]} {[%emt
00:00:03]} Rxd1 {[%clk 00:26:14]} {[%emt 00:00:05]} 45. Kxe4 {[%clk 00:28:59]}
{[%emt 00:00:11]} b4 {[%clk 00:22:08]} {[%emt 00:04:35]} 46. Nd4 {[%clk
00:28:41]} {[%emt 00:00:48]} Rd2 {[%clk 00:20:27]} {[%emt 00:02:10]} 47. Kd5
{[%clk 00:28:53]} {[%emt 00:00:18]} Rxa2 {[%clk 00:17:10]} {[%emt 00:03:47]} 48.
Kc4 {[%clk 00:28:37]} {[%emt 00:00:46]} Rb2 {[%clk 00:17:06]} {[%emt 00:00:33]}
49. Nb3 {[%clk 00:29:03]} {[%emt 00:00:05]} Kf5 {[%clk 00:17:14]} {[%emt
00:00:22]} 50. Kxb4 {[%clk 00:29:27]} {[%emt 00:00:06]} Kxf4 {[%clk 00:17:35]}
{[%emt 00:00:09]} 51. Kc4 {[%clk 00:29:52]} {[%emt 00:00:05]} Rxf2 {[%clk
00:17:59]} {[%emt 00:00:06]} 52. Kd4 {[%clk 00:30:16]} {[%emt 00:00:05]} Rf1
{[%clk 00:17:58]} {[%emt 00:00:31]} 53. Nd2 {[%clk 00:28:55]} {[%emt 00:01:52]}
Ra1 {[%clk 00:18:11]} {[%emt 00:00:15]} 54. Kd3 {[%clk 00:28:43]} {[%emt
00:00:44]} Ra8 {[%clk 00:18:29]} {[%emt 00:00:12]} 55. Kd4 {[%clk 00:28:17]}
{[%emt 00:00:56]} Rd8+ {[%clk 00:18:47]} {[%emt 00:00:13]} 56. Kc3 {[%clk
00:28:41]} {[%emt 00:00:06]} Ke3 {[%clk 00:19:13]} {[%emt 00:00:04]} 57. Nc4
{[%clk 00:29:04]} {[%emt 00:00:07]} Ke2 {[%clk 00:19:16]} {[%emt 00:00:26]} 58.
Ne5 {[%clk 00:29:12]} {[%emt 00:00:21]} Rd5 {[%clk 00:19:13]} {[%emt 00:00:32]}
59. Nc4 {[%clk 00:29:39]} {[%emt 00:00:05]} Rd3+ {[%clk 00:19:35]} {[%emt
00:00:08]} 60. Kb4 {[%clk 00:30:05]} {[%emt 00:00:05]} 1/2-1/2

[Event "Norwegian Championship 2022"]
[Site "Kongsvinger, Norway"]
[Date "2022.07.13"]
[Round "6"]
[White "Urkedal, Frode Olav Olsen"]
[Black "Stanford, Maxim Barth"]
[Result "1-0"]
[Board "4"]
[TimeControl "40/5400+30:1800+30"]
[WhiteTitle "GM"]
[BlackTitle "IM"]
[WhiteFideId "1506102"]
[BlackFideId "408280"]
[WhiteElo "2555"]
[BlackElo "2308"]

1. e4 {[%clk 01:30:57]} {[%emt 00:00:01]} c5 {[%clk 01:30:55]} {[%emt
00:00:05]} 2. Nf3 {[%clk 01:31:24]} {[%emt 00:00:03]} g6 {[%clk 01:30:58]}
{[%emt 00:00:27]} 3. c4 {[%clk 01:31:49]} {[%emt 00:00:05]} Bg7 {[%clk
01:31:22]} {[%emt 00:00:06]} 4. d4 {[%clk 01:32:16]} {[%emt 00:00:04]} d6
{[%clk 01:29:08]} {[%emt 00:02:44]} 5. d5 {[%clk 01:29:53]} {[%emt 00:02:53]}
Bg4 {[%clk 01:27:59]} {[%emt 00:01:38]} 6. Be2 {[%clk 01:25:26]} {[%emt
00:04:57]} Nd7 {[%clk 01:27:36]} {[%emt 00:00:53]} 7. O-O {[%clk 01:24:40]}
{[%emt 00:01:16]} a6 {[%clk 01:18:15]} {[%emt 00:09:52]} 8. a4 {[%clk
01:23:53]} {[%emt 00:01:17]} Ngf6 {[%clk 01:17:14]} {[%emt 00:01:31]} 9. Nc3
{[%clk 01:24:15]} {[%emt 00:00:07]} O-O {[%clk 01:17:39]} {[%emt 00:00:06]} 10.
h3 {[%clk 01:23:22]} {[%emt 00:01:23]} Bxf3 {[%clk 01:18:05]} {[%emt 00:00:05]}
11. Bxf3 {[%clk 01:23:47]} {[%emt 00:00:04]} Qc7 {[%clk 01:14:04]} {[%emt
00:04:31]} 12. Bf4 {[%clk 01:21:11]} {[%emt 00:03:06]} Ne8 {[%clk 01:13:46]}
{[%emt 00:00:49]} 13. Qd2 {[%clk 01:19:48]} {[%emt 00:01:53]} Rb8 {[%clk
01:11:49]} {[%emt 00:02:27]} 14. Be2 {[%clk 01:16:56]} {[%emt 00:03:22]} Ne5
{[%clk 01:03:35]} {[%emt 00:08:45]} 15. Bg5 {[%clk 01:10:00]} {[%emt 00:07:25]}
f6 {[%clk 00:56:26]} {[%emt 00:07:39]} 16. Bh4 {[%clk 01:06:59]} {[%emt
00:03:31]} g5 {[%clk 00:40:35]} {[%emt 00:16:21]} 17. Bg3 {[%clk 01:06:16]}
{[%emt 00:01:13]} Ng6 {[%clk 00:40:59]} {[%emt 00:00:06]} 18. Bg4 {[%clk
01:05:22]} {[%emt 00:01:24]} Bh6 {[%clk 00:40:28]} {[%emt 00:01:01]} 19. Nd1
{[%clk 01:02:57]} {[%emt 00:02:55]} Ng7 {[%clk 00:39:42]} {[%emt 00:01:16]} 20.
Ne3 {[%clk 01:02:37]} {[%emt 00:00:48]} Kh8 {[%clk 00:38:09]} {[%emt 00:02:04]}
21. Qc2 {[%clk 00:53:26]} {[%emt 00:09:41]} Nf4 {[%clk 00:33:11]} {[%emt
00:05:29]} 22. Bf3 {[%clk 00:50:30]} {[%emt 00:03:26]} f5 {[%clk 00:29:05]}
{[%emt 00:04:36]} 23. exf5 {[%clk 00:50:12]} {[%emt 00:00:48]} Ngh5 {[%clk
00:29:13]} {[%emt 00:00:23]} 24. Qd1 {[%clk 00:49:10]} {[%emt 00:01:32]} Nf6
{[%clk 00:28:54]} {[%emt 00:00:49]} 25. Bh2 {[%clk 00:49:38]} {[%emt 00:00:02]}
b5 {[%clk 00:27:47]} {[%emt 00:01:37]} 26. axb5 {[%clk 00:47:58]} {[%emt
00:02:10]} axb5 {[%clk 00:28:09]} {[%emt 00:00:08]} 27. b3 {[%clk 00:47:16]}
{[%emt 00:01:12]} bxc4 {[%clk 00:27:56]} {[%emt 00:00:43]} 28. bxc4 {[%clk
00:47:41]} {[%emt 00:00:05]} Rb2 {[%clk 00:26:03]} {[%emt 00:02:22]} 29. Ng4
{[%clk 00:40:48]} {[%emt 00:07:22]} Bg7 {[%clk 00:25:30]} {[%emt 00:01:04]} 30.
g3 {[%clk 00:35:47]} {[%emt 00:05:31]} Nxh3+ {[%clk 00:16:48]} {[%emt
00:09:12]} 31. Kg2 {[%clk 00:36:13]} {[%emt 00:00:04]} Nxg4 {[%clk 00:17:13]}
{[%emt 00:00:06]} 32. Bxg4 {[%clk 00:36:33]} {[%emt 00:00:08]} Nxf2 {[%clk
00:16:45]} {[%emt 00:00:59]} 33. Rxf2 {[%clk 00:36:45]} {[%emt 00:00:18]} Rxf2+
{[%clk 00:16:24]} {[%emt 00:00:51]} 34. Kxf2 {[%clk 00:37:09]} {[%emt
00:00:06]} h5 {[%clk 00:16:18]} {[%emt 00:00:36]} 35. Bxh5 {[%clk 00:37:12]}
{[%emt 00:00:27]} Rxf5+ {[%clk 00:13:25]} {[%emt 00:03:23]} 36. Kg2 {[%clk
00:37:30]} {[%emt 00:00:11]} Bxa1 {[%clk 00:13:19]} {[%emt 00:00:36]} 37. Bg6
{[%clk 00:36:44]} {[%emt 00:01:15]} Rf8 {[%clk 00:09:54]} {[%emt 00:03:55]} 38.
Qh5+ {[%clk 00:32:13]} {[%emt 00:05:01]} Kg7 {[%clk 00:10:23]} {[%emt
00:00:01]} 39. Qh7+ {[%clk 00:32:35]} {[%emt 00:00:07]} Kf6 {[%clk 00:10:48]}
{[%emt 00:00:05]} 40. Bb1 {[%clk 01:02:58]} {[%emt 00:00:08]} Qc8 {[%clk
00:35:37]} {[%emt 00:05:41]} 41. Qg6+ {[%clk 01:03:09]} {[%emt 00:00:19]} Ke5
{[%clk 00:36:01]} {[%emt 00:00:06]} 42. g4+ {[%clk 01:03:32]} {[%emt 00:00:06]}
Rf4 {[%clk 00:34:36]} {[%emt 00:01:55]} 43. Qg7# {[%emt 00:00:08]} 1-0

[Event "Norwegian Championship 2022"]
[Site "Kongsvinger, Norway"]
[Date "2022.07.13"]
[Round "6"]
[White " Østenstad, Berge"]
[Black "Østmoe, Geir Sune Tallaksen"]
[Result "0-1"]
[Board "5"]
[TimeControl "40/5400+30:1800+30"]
[WhiteTitle "GM"]
[BlackTitle "IM"]
[WhiteFideId "1500058"]
[BlackFideId "1502778"]
[WhiteElo "2451"]
[BlackElo "2483"]

1. Nf3 {[%clk 01:30:58]} {[%emt 00:00:02]} Nf6 {[%clk 01:30:38]} {[%emt
00:00:23]} 2. c4 {[%clk 01:31:22]} {[%emt 00:00:05]} e6 {[%clk 01:31:03]}
{[%emt 00:00:05]} 3. Nc3 {[%clk 01:31:42]} {[%emt 00:00:10]} d5 {[%clk
01:31:10]} {[%emt 00:00:24]} 4. e3 {[%clk 01:32:01]} {[%emt 00:00:11]} Be7
{[%clk 01:24:43]} {[%emt 00:06:57]} 5. b3 {[%clk 01:31:21]} {[%emt 00:01:10]}
O-O {[%clk 01:24:18]} {[%emt 00:00:55]} 6. Bb2 {[%clk 01:31:30]} {[%emt
00:00:21]} b6 {[%clk 01:21:47]} {[%emt 00:03:01]} 7. cxd5 {[%clk 01:23:54]}
{[%emt 00:08:06]} exd5 {[%clk 01:21:12]} {[%emt 00:01:06]} 8. d4 {[%clk
01:23:03]} {[%emt 00:01:21]} Re8 {[%clk 01:17:58]} {[%emt 00:03:43]} 9. Bd3
{[%clk 01:18:08]} {[%emt 00:05:24]} Ba6 {[%clk 01:15:18]} {[%emt 00:03:11]} 10.
O-O {[%clk 01:17:10]} {[%emt 00:01:28]} Bxd3 {[%clk 00:57:52]} {[%emt
00:17:57]} 11. Qxd3 {[%clk 01:14:03]} {[%emt 00:03:36]} Bd6 {[%clk 00:58:07]}
{[%emt 00:00:15]} 12. Rac1 {[%clk 01:10:35]} {[%emt 00:03:58]} a6 {[%clk
00:57:30]} {[%emt 00:01:08]} 13. Ne5 {[%clk 00:57:42]} {[%emt 00:13:23]} Bxe5
{[%clk 00:45:24]} {[%emt 00:12:36]} 14. dxe5 {[%clk 00:57:57]} {[%emt
00:00:15]} Rxe5 {[%clk 00:45:49]} {[%emt 00:00:05]} 15. Ne2 {[%clk 00:46:52]}
{[%emt 00:11:34]} Re6 {[%clk 00:43:52]} {[%emt 00:02:28]} 16. Nf4 {[%clk
00:46:20]} {[%emt 00:01:02]} Rd6 {[%clk 00:43:11]} {[%emt 00:01:11]} 17. Be5
{[%clk 00:31:20]} {[%emt 00:15:28]} Rd7 {[%clk 00:41:18]} {[%emt 00:02:24]} 18.
Rfd1 {[%clk 00:29:29]} {[%emt 00:02:21]} Ng4 {[%clk 00:36:43]} {[%emt
00:05:04]} 19. Qf5 {[%clk 00:23:23]} {[%emt 00:06:33]} Nxe5 {[%clk 00:36:30]}
{[%emt 00:00:45]} 20. Qxe5 {[%clk 00:23:50]} {[%emt 00:00:04]} c6 {[%clk
00:36:17]} {[%emt 00:00:43]} 21. b4 {[%clk 00:17:27]} {[%emt 00:06:52]} Raa7
{[%clk 00:30:33]} {[%emt 00:06:14]} 22. a4 {[%clk 00:17:08]} {[%emt 00:00:50]}
Rd6 {[%clk 00:29:43]} {[%emt 00:01:20]} 23. a5 {[%clk 00:10:05]} {[%emt
00:07:33]} Re7 {[%clk 00:28:45]} {[%emt 00:01:28]} 24. Qa1 {[%clk 00:10:21]}
{[%emt 00:00:14]} Nd7 {[%clk 00:23:24]} {[%emt 00:05:51]} 25. Nd3 {[%clk
00:09:55]} {[%emt 00:00:55]} Re4 {[%clk 00:21:52]} {[%emt 00:02:03]} 26. axb6
{[%clk 00:08:36]} {[%emt 00:01:49]} Qxb6 {[%clk 00:21:46]} {[%emt 00:00:36]} 27.
Qa3 {[%clk 00:08:54]} {[%emt 00:00:12]} Ne5 {[%clk 00:10:21]} {[%emt 00:11:55]}
28. Nc5 {[%clk 00:06:15]} {[%emt 00:03:09]} Rc4 {[%clk 00:06:17]} {[%emt
00:04:34]} 29. Rxc4 {[%clk 00:06:06]} {[%emt 00:00:39]} Nxc4 {[%clk 00:06:43]}
{[%emt 00:00:04]} 30. Qxa6 {[%clk 00:06:26]} {[%emt 00:00:11]} Qxa6 {[%clk
00:06:18]} {[%emt 00:00:55]} 31. Nxa6 {[%clk 00:06:48]} {[%emt 00:00:07]} Rd8
{[%clk 00:05:06]} {[%emt 00:01:42]} 32. h4 {[%clk 00:06:14]} {[%emt 00:01:04]}
h5 {[%clk 00:05:17]} {[%emt 00:00:19]} 33. g3 {[%clk 00:05:36]} {[%emt
00:01:09]} Ra8 {[%clk 00:05:12]} {[%emt 00:00:34]} 34. Nc5 {[%clk 00:06:02]}
{[%emt 00:00:04]} Ra2 {[%clk 00:05:21]} {[%emt 00:00:21]} 35. Rd4 {[%clk
00:03:52]} {[%emt 00:02:39]} f5 {[%clk 00:03:41]} {[%emt 00:02:11]} 36. b5
{[%clk 00:01:46]} {[%emt 00:02:36]} Ra5 {[%clk 00:03:13]} {[%emt 00:00:58]} 37.
Ne6 {[%clk 00:01:07]} {[%emt 00:01:08]} Rxb5 {[%clk 00:03:30]} {[%emt
00:00:13]} 38. Nf4 {[%clk 00:01:30]} {[%emt 00:00:07]} Ne5 {[%clk 00:03:36]}
{[%emt 00:00:25]} 39. Kg2 {[%clk 00:01:51]} {[%emt 00:00:08]} g6 {[%clk
00:03:38]} {[%emt 00:00:28]} 40. Rd2 {[%clk 00:31:32]} {[%emt 00:00:49]} Kf7
{[%clk 00:33:30]} {[%emt 00:00:38]} 41. Ra2 {[%clk 00:31:24]} {[%emt 00:00:38]}
Ke7 {[%clk 00:28:23]} {[%emt 00:05:37]} 42. Kf1 {[%clk 00:25:44]} {[%emt
00:06:10]} Kd6 {[%clk 00:26:14]} {[%emt 00:02:40]} 43. Ke2 {[%clk 00:25:53]}
{[%emt 00:00:20]} Kc5 {[%clk 00:24:56]} {[%emt 00:01:49]} 44. Kd2 {[%clk
00:21:02]} {[%emt 00:05:21]} Kb4 {[%clk 00:23:49]} {[%emt 00:01:37]} 45. Ra8
{[%clk 00:20:43]} {[%emt 00:00:49]} Kc4 {[%clk 00:21:14]} {[%emt 00:03:05]} 46.
Kc2 {[%clk 00:20:29]} {[%emt 00:00:43]} c5 {[%clk 00:13:27]} {[%emt 00:08:18]}
47. Re8 {[%clk 00:18:19]} {[%emt 00:02:40]} Nc6 {[%clk 00:12:51]} {[%emt
00:01:06]} 48. Nxg6 {[%clk 00:18:31]} {[%emt 00:00:18]} Ra5 {[%clk 00:13:14]}
{[%emt 00:00:07]} 49. Kb2 {[%clk 00:17:30]} {[%emt 00:01:31]} Kd3 {[%clk
00:11:26]} {[%emt 00:02:18]} 50. Nf4+ {[%clk 00:17:15]} {[%emt 00:00:45]} Kd2
{[%clk 00:11:22]} {[%emt 00:00:34]} 51. Nxd5 {[%clk 00:15:20]} {[%emt
00:02:24]} Rb5+ {[%clk 00:11:18]} {[%emt 00:00:35]} 52. Ka3 {[%clk 00:15:46]}
{[%emt 00:00:04]} c4 {[%clk 00:11:26]} {[%emt 00:00:22]} 53. e4 {[%clk
00:14:37]} {[%emt 00:01:39]} c3 {[%clk 00:08:33]} {[%emt 00:03:23]} 54. Rc8
{[%clk 00:12:04]} {[%emt 00:03:04]} Rc5 {[%clk 00:08:11]} {[%emt 00:00:52]} 0-1

[Event "Norwegian Championship 2022"]
[Site "Kongsvinger, Norway"]
[Date "2022.07.13"]
[Round "6"]
[White "Tallaksen, Levi André"]
[Black "Vestby-Ellingsen, Mads"]
[Result "0-1"]
[Board "6"]
[TimeControl "40/5400+30:1800+30"]
[WhiteTitle "FM"]
[BlackTitle "IM"]
[WhiteFideId "1505785"]
[BlackFideId "1520857"]
[WhiteElo "2341"]
[BlackElo "2351"]

1. d4 {[%clk 01:30:56]} {[%emt 00:00:03]} Nf6 {[%clk 01:30:45]} {[%emt
00:00:14]} 2. c4 {[%clk 01:31:19]} {[%emt 00:00:08]} e6 {[%clk 01:31:00]}
{[%emt 00:00:15]} 3. Nc3 {[%clk 01:31:36]} {[%emt 00:00:13]} Bb4 {[%clk
01:31:13]} {[%emt 00:00:16]} 4. f3 {[%clk 01:31:49]} {[%emt 00:00:17]} c5
{[%clk 01:30:29]} {[%emt 00:01:14]} 5. d5 {[%clk 01:31:53]} {[%emt 00:00:26]}
b5 {[%clk 01:30:24]} {[%emt 00:00:34]} 6. e4 {[%clk 01:31:41]} {[%emt
00:00:43]} O-O {[%clk 01:29:52]} {[%emt 00:01:02]} 7. Bd3 {[%clk 01:30:16]}
{[%emt 00:01:54]} bxc4 {[%clk 01:26:51]} {[%emt 00:03:30]} 8. Bxc4 {[%clk
01:30:09]} {[%emt 00:00:38]} Ba6 {[%clk 01:24:34]} {[%emt 00:02:47]} 9. Bxa6
{[%clk 01:28:07]} {[%emt 00:02:32]} Nxa6 {[%clk 01:23:48]} {[%emt 00:01:15]} 10.
Nge2 {[%clk 01:28:28]} {[%emt 00:00:09]} exd5 {[%clk 01:21:42]} {[%emt
00:02:36]} 11. exd5 {[%clk 01:28:22]} {[%emt 00:00:37]} h6 {[%clk 01:11:01]}
{[%emt 00:11:10]} 12. O-O {[%clk 01:26:55]} {[%emt 00:01:57]} d6 {[%clk
01:10:50]} {[%emt 00:00:40]} 13. Ng3 {[%clk 00:53:34]} {[%emt 00:33:51]} Nc7
{[%clk 01:02:18]} {[%emt 00:09:02]} 14. Nge4 {[%clk 00:52:39]} {[%emt
00:01:25]} Bxc3 {[%clk 01:01:17]} {[%emt 00:01:30]} 15. Nxc3 {[%clk 00:52:20]}
{[%emt 00:00:50]} Qd7 {[%clk 00:58:41]} {[%emt 00:03:06]} 16. Qd3 {[%clk
00:52:24]} {[%emt 00:00:26]} Rfe8 {[%clk 00:55:54]} {[%emt 00:03:17]} 17. Bf4
{[%clk 00:49:39]} {[%emt 00:03:15]} Rab8 {[%clk 00:49:37]} {[%emt 00:06:47]} 18.
Rae1 {[%clk 00:48:00]} {[%emt 00:02:09]} Rxb2 {[%clk 00:45:27]} {[%emt
00:04:40]} 19. Ne4 {[%clk 00:48:10]} {[%emt 00:00:21]} Nfxd5 {[%clk 00:35:49]}
{[%emt 00:10:07]} 20. Bg3 {[%clk 00:28:37]} {[%emt 00:20:03]} Re6 {[%clk
00:35:18]} {[%emt 00:01:00]} 21. Qa3 {[%clk 00:25:03]} {[%emt 00:04:05]} Rb8
{[%clk 00:28:17]} {[%emt 00:07:31]} 22. Qxa7 {[%clk 00:17:56]} {[%emt
00:07:37]} Ra8 {[%clk 00:27:40]} {[%emt 00:01:07]} 23. Qb7 {[%clk 00:18:20]}
{[%emt 00:00:06]} f5 {[%clk 00:10:32]} {[%emt 00:17:38]} 24. Nxc5 {[%clk
00:02:56]} {[%emt 00:15:55]} dxc5 {[%clk 00:10:51]} {[%emt 00:00:10]} 25. Rxe6
{[%clk 00:01:05]} {[%emt 00:02:21]} Qxe6 {[%clk 00:11:12]} {[%emt 00:00:09]} 26.
Bxc7 {[%clk 00:01:21]} {[%emt 00:00:15]} Rxa2 {[%clk 00:10:49]} 27. Bg3 {[%clk
00:00:41]} {[%emt 00:02:02]} Re2 {[%clk 00:04:40]} {[%emt 00:06:40]} 28. Ra1
{[%clk 00:00:33]} {[%emt 00:00:38]} Kh7 {[%clk 00:04:47]} {[%emt 00:00:22]} 29.
Bf2 {[%clk 00:00:39]} {[%emt 00:00:25]} Nf4 {[%clk 00:02:12]} {[%emt 00:03:04]}
30. Qb5 {[%clk 00:00:32]} {[%emt 00:00:37]} Rc2 {[%emt 00:02:25]} 31. Re1
{[%clk 00:00:33]} Qg6 {[%clk 00:00:43]} {[%emt 00:00:34]} 32. Bg3 {[%clk
00:00:34]} {[%emt 00:00:29]} Rxg2+ {[%clk 00:01:03]} {[%emt 00:00:09]} 33. Kh1
{[%clk 00:00:57]} {[%emt 00:00:07]} Rd2 {[%clk 00:00:34]} {[%emt 00:01:00]} 34.
Qxc5 {[%clk 00:00:36]} {[%emt 00:00:52]} Nd3 {[%clk 00:00:33]} {[%emt
00:00:30]} 35. Qe3 {[%clk 00:00:47]} {[%emt 00:00:17]} Nxe1 {[%clk 00:00:35]}
{[%emt 00:00:30]} 36. Qxd2 {[%clk 00:01:13]} {[%emt 00:00:04]} Nxf3 {[%clk
00:00:58]} {[%emt 00:00:07]} 37. Qd5 {[%clk 00:01:38]} {[%emt 00:00:05]} Qg4
{[%clk 00:01:04]} {[%emt 00:00:23]} 38. Kg2 {[%clk 00:01:42]} {[%emt 00:00:26]}
Ng5 {[%clk 00:01:24]} {[%emt 00:00:10]} 39. Kf1 {[%clk 00:01:02]} {[%emt
00:01:10]} Qe4 {[%clk 00:01:02]} {[%emt 00:00:52]} 40. Qd6 {[%clk 00:30:33]}
{[%emt 00:01:00]} Qf3+ {[%clk 00:30:43]} {[%emt 00:00:48]} 41. Ke1 {[%clk
00:30:32]} {[%emt 00:00:31]} Ne4 {[%clk 00:30:43]} {[%emt 00:00:29]} 42. Qc7
{[%clk 00:29:58]} {[%emt 00:01:04]} Qe3+ {[%clk 00:30:52]} {[%emt 00:00:21]} 43.
Kf1 {[%clk 00:30:23]} {[%emt 00:00:05]} Nd2+ {[%clk 00:31:12]} {[%emt
00:00:10]} 44. Kg2 {[%clk 00:30:48]} {[%emt 00:00:05]} Qf3+ {[%clk 00:31:35]}
{[%emt 00:00:06]} 45. Kh3 {[%clk 00:31:13]} {[%emt 00:00:05]} Qf1+ {[%clk
00:31:58]} {[%emt 00:00:08]} 46. Kh4 {[%clk 00:31:40]} {[%emt 00:00:03]} Nf3+
{[%clk 00:32:19]} {[%emt 00:00:09]} 47. Kh5 {[%clk 00:32:05]} {[%emt 00:00:05]}
Qh3+ {[%clk 00:32:41]} {[%emt 00:00:07]} 48. Bh4 {[%clk 00:32:31]} {[%emt
00:00:04]} Qg4# {[%clk 00:32:32]} {[%emt 00:00:09]} 0-1